Cogmind - Beta 16 @@@ ROGUE MODE // 2025.11.03 @ 10:49:38 Player: Mozco Result: Destroyed by 5N-960(R) with Subdweller Machine Gun Performance ------------- Evolutions (0) 0 Regions Visited (2) 400 Robots Destroyed (19) 95 Value Destroyed (601) 601 Prototype IDs (12) 240 Alien Tech Used (0) 0 Bonus (-18) -18 TOTAL SCORE: 1318 Bonus ------- Friendly Fire -18 Cogmind --------- Core Integrity 0/250 Matter 209/300 Energy 200/200 System Corruption 0% Temperature Cool (0) Movement Rolling (110) Location -10/Subcaves Parts ------- > --- POWER (1) -------- Subdweller Power Source > --- PROPULSION (2) --- Subdweller Monowheel Subdweller Monowheel > --- UTILITY (2) ------ Small Storage Unit Utility Shielding > --- WEAPON (2) ------- Battle Rifle Slug Cannon > --- INVENTORY (8) ---- Light Ion Engine Light Treads Light Treads Power Bank Subdweller Machine Gun Subdweller Shrapnel Launcher Multitool Shrapnel Trap Peak State ------------ > --- POWER ------------ Subdweller Power Source > --- PROPULSION ------- Compact Wheel Subdweller Monowheel > --- UTILITY ---------- Small Storage Unit Utility Shielding > --- WEAPON ----------- Subdweller Laser Slug Cannon > --- INVENTORY -------- Light Ion Engine Light Treads Light Treads Power Bank Battle Rifle Subdweller Machine Gun Subdweller Shrapnel Launcher Multitool [Rating: 15] Favorites ----------- Power Subdweller Power Source Engine Subdweller Power Source Propulsion Compact Wheel Wheel Compact Wheel Utility Small Storage Unit Device Improved Terrain Scanner Storage Small Storage Unit Protection Utility Shielding Weapon Battle Cannon Energy Gun Subdweller Laser Energy Cannon Subdweller Beam Cannon Ballistic Gun Subdweller Machine Gun Ballistic Cannon Battle Cannon Build | -11 -10 -10 ------- Run | Yrd Mat Sub Slots Evolved . | . . . Power . | . . . Propulsion . | . . . Utility . | . . . Weapon . | . . . Parts Attached 22 | 7 . 15 Power 4 | 1 . 3 Engine 4 | 1 . 3 Core . | . . . Reactor . | . . . Propulsion 6 | 2 . 4 Treads . | . . . Leg . | . . . Wheel 6 | 2 . 4 Hover . | . . . Flight . | . . . Utility 3 | 2 . 1 Device 1 | 1 . . Storage 1 | 1 . . Processor . | . . . Hackware . | . . . Protection 1 | . . 1 Artifact . | . . . Weapon 9 | 2 . 7 Energy Gun 2 | 1 . 1 Energy Cannon 1 | . . 1 Ballistic Gun 4 | 1 . 3 Ballistic Cannon 2 | . . 2 Launcher . | . . . Special Weapon . | . . . Impact Weapon . | . . . Slashing Weapon . | . . . Piercing Weapon . | . . . Special Melee Weapon . | . . . Unidentified Prototypes . | . . . Parts Lost 6 | . . 6 Power 1 | . . 1 Propulsion 2 | . . 2 Utility 1 | . . 1 Weapon 2 | . . 2 Highest Loss Streak 2 | . . 2 To Critical Strikes . | . . . Average Backups 7 | 3 6 7 Power . | . 1 . Propulsion 3 | 2 4 3 Utility . | . . . Weapon 2 | . 1 2 Tool/Special . | . . . Unused Backups 10 | . . 10 Power . | . . . Propulsion 4 | . . 4 Utility 1 | . . 1 Weapon 3 | . . 3 Tool/Special 2 | . . 2 Average Slot Usage (%) 97 | . 100 97 Engine 13 | . 14 13 Wheel 27 | . 28 27 Device 4 | . 14 3 Storage 14 | . 14 14 Protection 9 | . . 9 Energy Gun 4 | . 14 3 Energy Cannon 4 | . . 4 Ballistic Gun 7 | . 14 7 Ballistic Cannon 11 | . . 11 Peak Build Rating 15 | 9 9 15 Average Rating 12 | 5 9 12 On Entrance 6 | . 9 9 Avg Prop Armor Cover (%) 4 | . . 4 Naked Turns . | . . . Heaviest Build 26 | 13 13 26 Greatest Support 36 | 26 26 36 Greatest Overweight (x) 6 | . . 6 Average Overweight (x) . | . . . Largest Inventory Capacity 8 | 8 8 8 Average Capacity 7 | 7 8 8 Most Carried 8 | 6 6 8 Average Carried 7 | 4 6 7 Final Capacity 8 | 8 8 8 Final Carried 8 | 6 6 8 Class Distribution -------------------- 100% | Mutant Dominant Class ---------------- Mutant | -10/Materials Mutant | -10/Subcaves Resources | -11 -10 -10 ----------- Run | Yrd Mat Sub Matter Collected 874 | 275 . 599 Remotely . | . . . Salvage Created 632 | 167 . 465 Parts 44 | 14 . 30 Haulers Intercepted . | . . . Recyclers Shooed . | . . . Parts Field Recycled . | . . . Retrieved Matter . | . . . Parts Self-Destructed 20 | . . 20 Prevented . | . . . Parts Restored . | . . . Kills | -11 -10 -10 ------- Run | Yrd Mat Sub Combat Hostiles Destroyed 14 | . . 14 Guns 8 | . . 8 Cannons 5 | . . 5 Classes Destroyed 4 | 2 . 2 Tunneler 4 | 4 . . Recycler 1 | 1 . . Grunt 1 | . . 1 Subdweller 13 | . . 13 Best Kill Streak 5 | 5 . 3 Combat Bots Only 3 | . . 3 Max Kills in Single Turn 1 | 1 . 1 Gunslinging . | . . . Exploded . | . . . Melee . | . . . Uniques/NPCs Destroyed . | . . . Combat | -11 -10 -10 -------- Run | Yrd Mat Sub Hostile Shots Fired 58 | . . 58 Missed 10 | . . 10 Hits 48 | . . 48 Projectile 48 | . . 48 Critical Strikes 2 | . . 2 Actively Blocked 1 | . . 1 Damage Taken 1058 | . . 1058 Core 254 | . . 254 Absorbed by Shields . | . . . Redirected to Shielding 5 | . . 5 Core Remaining (%) 100 | 100 . . Volleys Fired 108 | 5 . 103 Largest 2 | 2 . 2 Hottest 120 | 60 . 120 Shots Fired 204 | 10 . 194 Gun 124 | 10 . 114 Cannon 80 | . . 80 Launcher . | . . . Special . | . . . Kinetic 149 | 5 . 144 Thermal 32 | . . 32 Explosive . | . . . Electromagnetic 23 | 5 . 18 Robot Hit Streak 23 | 6 . 23 Robot Miss Streak 3 | . . 3 Penetration Max . | . . . Secondary Targets . | . . . Shots Hit Robots 82 | 6 . 76 Core Hits 35 | 6 . 29 Critical Kills 2 | . . 2 Critical Parts Destroyed 1 | . . 1 Critical Strikes 6 | . . 6 Meltdown 1 | . . 1 Destroy 4 | . . 4 Blast 1 | . . 1 Melee Attacks . | . . . Impact . | . . . Slashing . | . . . Piercing . | . . . Sneak Attacks . | . . . Combat Hostiles . | . . . Follow-up Attacks . | . . . Damage Inflicted 1472 | 93 . 1379 Guns 831 | 93 . 738 Cannons 641 | . . 641 Explosions . | . . . Melee . | . . . Ramming . | . . . Kinetic 1075 | 24 . 1051 Thermal 190 | . . 190 Explosive . | . . . Electromagnetic 207 | 69 . 138 Impact . | . . . Slashing . | . . . Piercing . | . . . Highest Corruption . | . . . Average Corruption . | . . . Corruption Purged . | . . . Corruption Blocked . | . . . Overload Shots . | . . . Overflow Damage . | . . . Projectiles . | . . . Explosions . | . . . Melee . | . . . Knockbacks 5 | . . 5 Impact . | . . . Kinetic 5 | . . 5 Secondary . | . . . Self-Inflicted Damage . | . . . Shots . | . . . Rammed . | . . . Targets Rammed . | . . . Kicked . | . . . Crushed . | . . . Highest Temperature 36 | . . 36 Average Temperature 24 | . . 24 Received Heat Transfer 195 | . . 195 Siege Activations . | . . . Martial Activations . | . . . Shielding Activations . | . . . Robots Disrupted . | . . . Combat Hostiles . | . . . Robots Corrupted . | . . . Combat Hostiles . | . . . Parts Fried . | . . . Impact Corruptions . | . . . Robots Melted 1 | . . 1 Combat Hostiles 1 | . . 1 Parts Melted 2 | . . 2 Heat Transferred 236 | . . 236 Parts Sabotaged . | . . . Parts Stolen . | . . . Parts Stripped . | . . . Power Chain Reactions . | . . . Alert | -11 -10 -10 ------- Run | Yrd Mat Sub Maximum Alert Level . | . . . Low Security (%) 100 | 100 100 . Level 1 . | . . . Level 2 . | . . . Level 3 . | . . . Level 4 . | . . . Level 5 . | . . . High Security . | . . . Max Security . | . . . Peak Influence 15 | 15 6 . Initial 3 | . 3 . Average 3 | 3 3 . Influence Increases 61 | 25 6 30 Destroy 0b10 Robot/C 20 | . . 20 Destroy 0b10 Robot/NC 25 | 25 . . Destroy Leader 10 | . . 10 Successful Hack 6 | . 6 . Influence Decreases 61 | 20 5 36 Entered New Map 6 | . 2 4 Time Decay 55 | 20 3 32 Squads Dispatched . | . . . Investigation . | . . . Extermination . | . . . Reinforcement . | . . . Assault . | . . . Garrison . | . . . Intercept . | . . . Searches Triggered . | . . . Construction Impeded . | . . . Haulers Reinforced . | . . . Active Scanning Responses . | . . . Cargo Convoy Interrupts . | . . . Stealth | -11 -10 -10 --------- Run | Yrd Mat Sub Distress Signals . | . . . Communications Jammed . | . . . Distress Signals . | . . . Times Spotted 18 | . 1 17 Peak Tracking Total 2 | . 1 2 Tactical Retreats . | . . . Traps | -11 -10 -10 ------- Run | Yrd Mat Sub Traps Triggered 1 | . . 1 Indirectly . | . . . Trap Hack Attempts . | . . . Triggered . | . . . Disarmed . | . . . Reprogrammed . | . . . Reused . | . . . Traps Extracted . | . . . Installed . | . . . Triggered . | . . . Most Traps Carried 1 | . . 1 Machines | -11 -10 -10 ---------- Run | Yrd Mat Sub Machines Disabled 1 | . . 1 Max in Single Turn 1 | . . 1 Machines Repaired . | . . . Machines Dismantled . | . . . Machines Sabotaged . | . . . Overloaded Fab Kills . | . . . Hacking | -11 -10 -10 --------- Run | Yrd Mat Sub Machines Accessed 2 | . 1 1 Terminals 1 | . 1 . Fabricators . | . . . Repair Stations . | . . . Recycling Units . | . . . Scanalyzers . | . . . Garrison Access . | . . . Total Hacks 3 | . 2 1 Successful 2 | . 1 1 Failed 1 | . 1 . Catastrophic . | . . . Database Lockouts . | . . . Manual 2 | . 2 . Terminals 2 | . 2 . Fabricators . | . . . Repair Stations . | . . . Recycling Units . | . . . Scanalyzers . | . . . Garrison Access . | . . . Terminal Hacks 2 | . 1 1 Robot Analysis 1 | . 1 . Proto ID Catalog 1 | . . 1 Fabricator Hacks . | . . . Repair Station Hacks . | . . . Recycling Unit Hacks . | . . . Scanalyzer . | . . . Garrison Access Hacks . | . . . Unauthorized Hacks . | . . . Terminals . | . . . Fabricators . | . . . Repair Stations . | . . . Recycling Units . | . . . Scanalyzers . | . . . Garrison Access . | . . . Data Cores Recovered . | . . . Used . | . . . Hacking Detections 1 | . 1 . Full Trace Events . | . . . Feedback Events . | . . . Feedback Blocked . | . . . Robot Schematics Acquired . | . . . Robots Built . | . . . Authchips . | . . . Time . | . . . Total Robot Build Rating . | . . . Part Schematics Acquired . | . . . Parts Built . | . . . Authchips . | . . . Time . | . . . Total Part Build Rating . | . . . Part Studies Acquired . | . . . Parts Repaired . | . . . Time . | . . . Parts Recycled . | . . . Recycled Matter . | . . . Retrieved Matter . | . . . Retrieved Components . | . . . Parts Scanalyzed . | . . . Part Schematics Acquired . | . . . Parts Damaged . | . . . Bothacking | -11 -10 -10 ------------ Run | Yrd Mat Sub Used RIF Installer . | . . . Robots Hacked . | . . . Non-combat . | . . . Combat . | . . . Robot Hacks Applied . | . . . Relay Couplers Released . | . . . Fabnet Peak Effective % . | . . . Robots Rewired . | . . . Allies Hacked . | . . . Hacks Repelled . | . . . Allies | -11 -10 -10 -------- Run | Yrd Mat Sub Total Allies . | . . . Largest Group . | . . . Highest-Rated Group . | . . . Highest-Rated Ally . | . . . Total Orders . | . . . Ally Attacks . | . . . Total Damage . | . . . Kills . | . . . Allies Corrupted . | . . . Allies Melted . | . . . Intel | -11 -10 -10 ------- Run | Yrd Mat Sub Active Infowar (turns) 689 | 14 34 641 Terrain 689 | 14 34 641 Robot Analysis Total 1 | . 1 . Derelict Logs Recovered 2 | . . 2 Drone Launches . | . . . Drone Recoveries . | . . . Exploration | -11 -10 -10 ------------- Run | Yrd Mat Sub Turns Passed 2472 | 96 34 2342 Spaces Moved 1792 | 74 37 1681 Core 13 | 3 . 10 Treads . | . . . Legs . | . . . Wheels 1779 | 71 37 1671 Hover . | . . . Flight . | . . . Fastest Speed 50 | 50 90 90 Average Speed 103 | 87 90 104 Slowest Speed 350 | 90 90 350 Overloaded Moves . | . . . Propulsion Burnouts . | . . . Robots Hopped . | . . . Potential Cave-ins . | . . . Cave-ins Triggered . | . . . Exploration Rate (%) 35 | 4 12 89 Regions Visited 2 Branch Regions 1 Pre-discovered Areas 2 | . . 2 Known Exits Taken . | . . . Unknown Exits Taken 2 | 1 1 . Scrap Searched 7 | . . 7 Spaces Dug 2 | . . 2 Terrain Destroyed 11 | . . 11 Melee . | . . . Projectile 11 | . . 11 AOE . | . . . Terrain Rammed . | . . . Walls Destroyed . | . . . Machines Disabled . | . . . Actions | -11 -10 -10 --------- Run | Yrd Mat Sub Total 2209 | 91 37 2081 Wait 262 | . 1 261 Move 1790 | 73 36 1681 Hop . | . . . Pick Up 14 | 6 . 8 Fast Attach 13 | 7 . 6 Attach 3 | . . 3 Detach . | . . . Swap 7 | . . 7 Drop 12 | . . 12 Fire 108 | 5 . 103 Melee . | . . . Ram . | . . . Kick . | . . . Crush . | . . . Escape Stasis . | . . . Rewire . | . . . Trap . | . . . Miscellaneous . | . . . Route ------- -11/Scrapyard -10/Materials -10/Subcaves (discovered 3 exits: [*Mat x2] / [*Scr]) History --------- Turn | Location | Event 17 | -11/Scrapyard | Discovered new exit (range 15) 97 | -11/Scrapyard | Entered Materials 98 | -10/Materials | Met a group of wandering Federalists 127 | -10/Materials | Discovered new exit (range 5) 131 | -10/Materials | Entered Subcaves 132 | -10/Subcaves | Approached by a straggling Scientist 310 | -10/Subcaves | Build established: Mutant 365 | -10/Subcaves | Shifting Twisted Machinery released Sub. Machine Gun 374 | -10/Subcaves | Discovered new exit (range 9) 375 | -10/Subcaves | Shifting Twisted Machinery released Battle Cannon 957 | -10/Subcaves | A swath of the cavern ceiling suddenly collapsed 1003 | -10/Subcaves | Scientist uncovered a shortcut to Scraptown 1047 | -10/Subcaves | Shifting Twisted Machinery released Flamer 1060 | -10/Subcaves | Shifting Twisted Machinery released Sub. Laser 1388 | -10/Subcaves | Learned Materials terminal intel 1404 | -10/Subcaves | Visited 4L-MR0's lab 1419 | -10/Subcaves | Found Power Bank 1507 | -10/Subcaves | Disturbed a concealed Subdweller 1519 | -10/Subcaves | Core integrity fell below 50% 1564 | -10/Subcaves | Discovered new exit (range 7) 1702 | -10/Subcaves | Shifting Twisted Machinery released Sub. Machine Gun 1702 | -10/Subcaves | Shifting Twisted Machinery released Shrapnel Trap 1980 | -10/Subcaves | Learned location of Zion (-6) 1980 | -10/Subcaves | Met a Zionite searching for "candidates" 2304 | -10/Subcaves | A swath of the cavern ceiling suddenly collapsed 2350 | -10/Subcaves | Core integrity fell below 20% 2470 | -10/Subcaves | Ambushed by Subdwellers from Twisted Machinery 2473 | -10/Subcaves | Destroyed by 5N-960(R) with Subdweller Machine Gun Last Messages --------------- 02325_ Sub. Monowheel shoots sparks and powers down. 02336_ Com. Wheel destroyed. 02338_ Sub. Beam Cannon destroyed. 02339_ XU-API(R) suffers critical hit (Destroy). 02339_ Destroyed Sub. Machine Gun. 02343_ Slug penetrates DK-7I1(R). 02349_ Slug penetrates Wall. 02354_ DK-7I1(R) destroyed. 02377_ Acquired 30 matter. 02380_ XU-API(R) knocked back. 02386_ XU-API(R) affixes Scrap Shield Fragment to Scrap Shield. 02386_ Slug penetrates XU-API(R). 02389_ XU-API(R) destroyed. 02395_ Acquired 6 matter. 02402_ Acquired Sub. Monowheel. 02404_ Acquired 10 matter. 02405_ Acquired 6 matter. 02470_ 5N-960(R) emerges from the Twisted Machinery. 02472_ D2-189(R) suffers critical hit (Destroy). 02472_ D2-189(R) destroyed. Map ----- +----------------------------------------------------+ | ?#???????#??##?#??????? ???????????#??#??## | | ????????#???#????#???? ??#???#?#?#??#??#?#####" | | ???????????##?#????##??? #???????#????????????#"" | | ?????????????#??###?#?#????#?#??#???##??#??????##" | | ?????????????#??###??#?? ?????##??##????????????# | | ?????????????#?##?#?#?##???#??#??#??????????????# | | ???????????????#?#?????##??????#????????????????# | | ??????????????????#??????? ??????#??????????????## | | ???????#?????????#?##???? ? ???##????????????????# | | ?????????????????????? ? ??????##????????????#?# | | ##???#????????????????? ?? ?????????????????# # | | ??????????????????????? ????#???????????????# | | ??????#????????????????"R ????????????????????# | | #??????????????????????#%! ????????????????????# | | ???????????#???????????#&= ???????????????????# | | ??????????????????????? ???????????????????# | | ??????????????????????? ???????????????????## | | #????#?????????????????# #????????????????????### | | ##???#?????????????????" ###????????????????????? | | #??????????????????#### ?????????????????????? | | ##?????????????????## " ??????????????#####??? | | #?????#???#????????"""" #??????????????# ##?? | | ##???????????????????? #??????????????# ##? | | #?????????????????????# #??????????????# ## | | ##????????????????????## #???????????????# | | #????????????????????# @ #???????????????# | | #???????????#??????#### #?????###??????## | | #????????????????###"" ##?????# ######## | | ##????????????????# " ###?### | | #?????#???????????# ### ###### | | #?????????????????# ### ##???# | | #???????#?????????# #### ## ### #??## | | #?????????????????###???## ## #??# | | ????#????????????????????### ##??## | | ???????????????????????????### ##### #????# | | ?????????????????????????????# ##?## ##???# | | ?????????????????????????????## ## ### #???# | | ??????????????????????????????##### #???# | | ?????????????????????????????????## ##???# | | ????????????????????????????????## #####? | | ???????????????????????????????## ### # ## | | ???????????????????????????????# ### | | #??????????????????????????????# ##?# | | #??????????????????????????????## ###### | | #???????????????????????????????# ##??# ## | | #???????????????????????????????## #???# # | | ?#???????????????????????????????# #??## ### | | ????????????????????????????????## #### #?# | | ????????????????????????????????# ## ##?# ## | | ????????????????????????????????## ###??# ## | +----------------------------------------------------+ Best States ------------- Heat Dissipation 25 Energy Generation 15 Energy Capacity 200 Matter Stores 300 Matter Capacity 300 Sight Range 16 Terrain Scan Range 16 Terrain Scan Density 10 Utility Shielding 33 Evasion (%) 42 Item Schematics ----------------- None Robot Schematics ------------------ None Fabricated ------------ Nothing Repaired ---------- Nothing Studied --------- None Alien Tech Used ----------------- None Achievements -------------- None Challenges ------------ None Game ------ Seed MicroHypervelocityScreen Manual? 0 Play Time 00:16:59 Cumulative 196.1 hours Start 2025.11.03 @ 10:34:44 End 2025.11.03 @ 10:49:38 Sessions 1 Manual Loads 0 Difficulty Rogue Special Mode None Game No. 205 Rogue 201 Adventurer 3 Explorer 1 Win Type - Total 1 Types 1/0/0/0/0/0/0/0/0/0 Lore% 71 Gallery% 72 Achievement% 51 Wizard Run 0 Options --------- Layout 0 ASCII 0 Keyboard 0 Movement Mouse Keybinds 0 Fullscreen 2 Font 18/SmallcapsGlow Map View 76x50 Zoom Use 0% Tactical HUD 1 Map Filters NONE Filters NONE Steam 1 RUN: ff791ee8-17f2-48a0-bd5a-f41c2d2e63f8